bitfinex/quotes_SOLUSD_20250622
["timestamp","ask_amount","ask_price","bid_price","bid_amount"]
[1750581406735,31.2071747,134.85,134.83,7.41674701]
[1750581407153,18.64964886,134.84,134.83,7.41674701]
[1750581408457,18.64964886,134.84,134.83,18.00365524]
[1750581410856,19.57673656,134.84,134.83,18.00365524]
[1750581411279,18.64964886,134.84,134.83,18.00365524]
[1750581411870,19.57675624,134.84,134.83,18.00365524]
[1750581412352,19.57675624,134.84,134.82,10.58690823]
[1750581412558,26.03035624,134.84,134.81,10.58690823]
[1750581412757,18.64964886,134.82,134.81,10.58690823]
[1750581412935,19.57693155,134.82,134.81,10.58690823]
[1750581413451,19.57693155,134.82,134.79,18.00585622]
[1750581413642,166.47693155,134.82,134.79,18.00585622]
[1750581413834,166.47693155,134.82,134.79,7.41894799]
[1750581413835,36.76,134.81,134.79,7.41894799]
[1750581414033,0.92748331,134.8,134.79,7.41894799]
[1750581414441,165.54964886,134.79,134.76,7.42059958]
[1750581414646,31.2075556,134.78,134.76,7.42059958]
[1750581414851,18.64964886,134.77,134.76,7.42059958]
[1750581416965,18.64964886,134.75,134.73,10.58690823]
[1750581417169,18.64964886,134.73,134.72,18.00971108]
[1750581417670,18.64964886,134.73,134.72,7.42280285]
[1750581418467,0.92787163,134.75,134.72,18.00971108]
[1750581418778,18.64964886,134.78,134.74,10.58690823]
[1750581418962,19.57720646,134.78,134.77,10.58690823]
[1750581419748,19.57720646,134.78,134.75,7.42115027]
[1750581420064,19.57720646,134.78,134.75,18.0080585]
[1750581420446,19.57720646,134.78,134.76,10.58690823]
[1750581420847,30.3,134.77,134.73,18.55557188]
[1750581421048,19.57733306,134.76,134.73,10.58690823]
[1750581421488,30.3,134.75,134.73,10.58690823]
[1750581421684,0.92783794,134.74,134.73,10.58690823]
[1750581422183,18.64964886,134.73,134.72,18.00971108]
[1750581422396,55.42964886,134.73,134.71,10.58690823]
[1750581422594,18.64964886,134.71,134.7,10.58690823]
[1750581422893,18.64964886,134.71,134.7,18.0108132]
[1750581428105,6.48,134.73,134.7,36.57057563]
[1750581428397,6.48,134.73,134.72,10.58690823]
[1750581428598,6.48,134.73,134.72,18.00971108]
[1750581430672,26.05738928,134.73,134.72,10.58690823]
[1750581432395,25.12964886,134.73,134.72,10.58690823]
[1750581432791,25.12964886,134.73,134.72,18.00971108]
[1750581433575,25.12964886,134.73,134.72,7.42280285]
[1750581433782,25.12964886,134.73,134.72,18.00971108]
[1750581434182,26.05752121,134.73,134.72,18.00971108]
[1750581434387,25.12964886,134.73,134.72,18.00971108]
[1750581435675,6.48,134.73,134.72,18.00971108]
[1750581444890,26.05748695,134.73,134.72,18.00971108]
[1750581445679,25.12964886,134.73,134.72,18.00971108]
[1750581445892,26.05752038,134.73,134.72,18.00971108]
[1750581446784,25.12964886,134.73,134.72,18.00971108]
[1750581447287,6.48,134.73,134.72,18.00971108]
[1750581447925,18.64964886,134.76,134.72,36.5667182]
[1750581448102,18.64964886,134.76,134.75,10.58690823]
[1750581448283,13.8786143,134.78,134.75,10.58690823]
[1750581448484,32.52826316,134.78,134.77,10.58690823]
[1750581448701,32.52826316,134.78,134.77,18.0069572]
[1750581450685,32.52826316,134.78,134.75,18.55243445]
[1750581450686,18.64964886,134.77,134.76,7.42037587]
[1750581450983,32.52826316,134.78,134.76,7.42037587]
[1750581451205,48.94964886,134.77,134.76,7.42037587]
[1750581452200,48.94964886,134.77,134.76,18.0072841]
[1750581452392,18.64964886,134.77,134.76,18.0072841]
[1750581454791,19.57729752,134.77,134.76,7.42037587]
[1750581454988,19.57729752,134.77,134.76,18.0072841]
[1750581457125,19.57729752,134.77,134.76,7.42037587]
[1750581458320,19.57729752,134.77,134.75,7.42094938]
[1750581458627,18.64964886,134.75,134.74,7.42170105]
[1750581458801,19.57749887,134.75,134.74,7.42170105]
[1750581459813,25.10057298,134.75,134.74,7.42170105]
[1750581460318,25.10056049,134.75,134.74,7.42170105]
[1750581460821,165.54964886,134.74,134.73,7.42225191]
[1750581461019,18.64964886,134.73,134.7,10.58690823]
[1750581461218,154.32805558,134.72,134.7,10.58690823]
[1750581461393,153.4,134.72,134.7,10.58690823]
[1750581461591,18.64964886,134.7,134.69,7.42445615]
[1750581461793,18.64964886,134.7,134.69,18.01136438]
[1750581463706,18.64964886,134.7,134.69,7.42445615]
[1750581464600,18.64964886,134.7,134.69,18.01136438]
[1750581470922,159.6744,134.72,134.69,18.01136438]
[1750581471128,153.4,134.72,134.71,10.58690823]
[1750581471797,6.5,134.72,134.71,10.58690823]
[1750581472198,146.9,134.75,134.71,10.58690823]
[1750581472397,6.48,134.77,134.74,10.58690823]
[1750581472602,25.12964886,134.77,134.76,10.58690823]
[1750581472805,18.64964886,134.76,134.72,26.0]
[1750581473004,18.64964886,134.76,134.75,10.58690823]
[1750581474933,18.64964886,134.76,134.75,18.0080585]
[1750581476507,6.48,134.77,134.75,18.0080585]
[1750581476820,25.12964886,134.77,134.76,10.58690823]
[1750581478812,25.12964886,134.77,134.76,7.42059958]
[1750581479241,18.64964886,134.76,134.73,29.142538]
[1750581479425,19.57739202,134.76,134.75,10.58690823]
[1750581480932,19.57739202,134.76,134.74,10.58690823]
[1750581481138,49.87739202,134.76,134.73,10.58690823]
[1750581481334,146.9,134.75,134.7,25.9836674]
[1750581481645,18.64964886,134.73,134.72,10.58690823]
[1750581481851,18.64964886,134.73,134.71,10.58690823]
[1750581482345,18.64964886,134.72,134.71,10.58690823]
[1750581482751,18.64964886,134.72,134.71,18.0102621]
[1750581486339,30.3,134.74,134.71,36.56864677]
[1750581486532,18.64964886,134.74,134.73,10.58690823]
[1750581488536,153.3002,134.75,134.73,18.00916014]
[1750581488737,171.94984886,134.75,134.74,10.58690823]
[1750581489726,18.64964886,134.74,134.73,7.42225191]
[1750581489950,18.64964886,134.74,134.73,18.00916014]
[1750581491522,146.9,134.75,134.73,18.00916014]
[1750581491744,165.54964886,134.75,134.74,10.58690823]
[1750581493357,165.54964886,134.75,134.74,18.00860928]
[1750581493646,6.48,134.77,134.74,36.56286191]
[1750581493824,146.9,134.78,134.76,10.58690823]
[1750581494028,165.54964886,134.78,134.77,10.58690823]
[1750581494231,18.64964886,134.78,134.74,25.97595368]
[1750581494424,31.22767393,134.77,134.75,10.58690823]
[1750581494626,18.64964886,134.76,134.75,10.58690823]
[1750581495441,18.64964886,134.76,134.75,7.42115027]
[1750581495752,25.18234886,134.76,134.75,7.42115027]
[1750581496639,25.18234886,134.76,134.74,7.42170105]
[1750581496828,31.22778266,134.75,134.74,7.42170105]
[1750581497024,49.87743152,134.75,134.74,7.42170105]
[1750581498065,56.35743152,134.75,134.74,7.42170105]
[1750581500367,55.42964886,134.75,134.74,18.00860928]
[1750581500529,25.12964886,134.75,134.74,18.00860928]
[1750581501152,25.12964886,134.75,134.74,7.42170105]
[1750581502978,25.12964886,134.75,134.73,7.42225191]
[1750581503160,31.22786522,134.74,134.73,7.42225191]
[1750581504274,31.22786522,134.74,134.7,36.57057563]
[1750581504275,18.64964886,134.73,134.7,36.57057563]
[1750581504584,18.64964886,134.71,134.7,36.57057563]
[1750581507750,18.64964886,134.71,134.7,18.0108132]
[1750581507973,18.64964886,134.71,134.7,7.42390497]
[1750581510259,18.64964886,134.71,134.7,18.0108132]
[1750581512669,18.64964886,134.72,134.7,36.57057563]
[1750581512970,18.64964886,134.72,134.71,10.58690823]
[1750581514178,30.3,134.73,134.71,18.0102621]
[1750581514369,18.64964886,134.73,134.72,10.58690823]
[1750581516289,18.64964886,134.73,134.72,18.00971108]
[1750581516665,7.40788111,134.75,134.72,36.5667182]
[1750581516868,18.64964886,134.74,134.72,25.97980997]
[1750581517207,18.64964886,134.74,134.73,10.58690823]
[1750581518482,18.64964886,134.74,134.73,18.00916014]
[1750581518784,6.48,134.75,134.73,18.00916014]
[1750581518981,6.48,134.75,134.74,10.58690823]
[1750581519185,25.12964886,134.75,134.74,10.58690823]
[1750581519683,6.48,134.75,134.74,10.58690823]
[1750581520077,6.48,134.75,134.74,21.17381646]
[1750581520277,18.64964886,134.78,134.74,21.17381646]
[1750581520479,18.64964886,134.78,134.77,10.58690823]
[1750581520698,18.64964886,134.78,134.77,18.0069572]
[1750581523689,19.57709385,134.78,134.76,10.58690823]
[1750581524075,49.87709385,134.78,134.75,10.58690823]
[1750581525373,146.9,134.77,134.75,10.58690823]
[1750581525589,0.92770984,134.76,134.75,10.58690823]
[1750581525995,0.92770984,134.76,134.75,18.0080585]
[1750581526666,19.5773587,134.76,134.75,7.42115027]
[1750581526872,49.8773587,134.76,134.75,7.42115027]
[1750581529590,56.3573587,134.76,134.75,7.42115027]
[1750581530904,56.3573587,134.76,134.74,7.4215091]
[1750581531075,56.3573587,134.76,134.74,18.00841733]
[1750581533297,18.64964886,134.75,134.74,18.00841733]
[1750581533508,18.64964886,134.75,134.74,7.4215091]
[1750581533698,18.64964886,134.75,134.73,18.00902247]
[1750581533903,19.57752092,134.74,134.73,7.42211424]
[1750581534085,18.64964886,134.73,134.72,7.42266559]
[1750581534885,24.18084323,134.73,134.71,7.42335387]
[1750581535100,49.87769327,134.72,134.71,7.42335387]
[1750581535814,196.77769327,134.72,134.71,7.42335387]
[1750581535996,195.84964886,134.72,134.71,7.42335387]
[1750581536720,18.64964886,134.71,134.69,7.42445615]
[1750581536906,196.77782479,134.7,134.69,7.42445615]
[1750581537090,208.87684886,134.7,134.69,7.42445615]
[1750581538714,18.64964886,134.69,134.65,26.0]
[1750581538909,18.64964886,134.69,134.68,10.58690823]
[1750581539820,18.64964886,134.69,134.68,18.01191565]
[1750581542213,6.48,134.7,134.68,28.59882388]
[1750581542518,6.48,134.7,134.69,10.58690823]
[1750581542886,6.48,134.7,134.68,7.42500742]
[1750581543086,6.48,134.7,134.69,10.58690823]
[1750581544126,6.48,134.7,134.69,18.01136438]
[1750581547233,26.05766122,134.7,134.69,7.42445615]
[1750581547394,25.12964886,134.7,134.69,18.01136438]
[1750581548918,25.12964886,134.7,134.68,26.0]
[1750581549095,25.12964886,134.7,134.69,10.58690823]
[1750581550227,25.12964886,134.7,134.69,18.01136438]
[1750581553002,25.12964886,134.7,134.69,7.42445615]
[1750581553211,26.05769105,134.7,134.69,7.42445615]
[1750581553408,56.35769105,134.7,134.69,7.42445615]
[1750581554235,18.64964886,134.69,134.68,7.42500742]
[1750581556352,18.64964886,134.67,134.65,7.42666171]
[1750581556634,0.92839647,134.66,134.65,18.01356994]
[1750581559429,49.87801469,134.67,134.65,18.01356994]
[1750581560012,49.87801469,134.67,134.65,7.42666171]
[1750581560213,49.87801469,134.67,134.65,18.01356994]
[1750581560521,49.87801469,134.67,134.65,7.42666171]
[1750581562814,49.87801469,134.67,134.63,29.15613844]
[1750581563052,49.87801469,134.67,134.64,10.58690823]
[1750581563551,49.87801469,134.67,134.65,10.58690823]
[1750581563842,165.54964886,134.66,134.64,10.58690823]
[1750581564045,0.92846559,134.65,134.64,10.58690823]
[1750581564834,0.92846559,134.65,134.64,18.01412153]
[1750581566240,165.54964886,134.66,134.64,18.01412153]
[1750581566434,165.54964886,134.66,134.65,10.58690823]
[1750581567241,165.54964886,134.66,134.65,18.01356994]
[1750581568963,165.54964886,134.66,134.65,7.42666171]
[1750581569270,18.64964886,134.65,134.63,29.15613844]
[1750581569566,18.64964886,134.65,134.64,10.58690823]
[1750581569767,18.64964886,134.65,134.63,18.56923021]
[1750581569971,18.64964886,134.65,134.64,10.58690823]
[1750581571147,18.64964886,134.65,134.64,18.01412153]
[1750581571351,19.57809717,134.65,134.64,18.01412153]
[1750581573645,19.57808842,134.65,134.64,18.01412153]
[1750581573846,18.64964886,134.65,134.64,18.01412153]
[1750581574350,18.64964886,134.63,134.56,26.01070154]
[1750581574544,18.64964886,134.61,134.57,10.58690823]
[1750581574857,18.64964886,134.59,134.57,10.58690823]
[1750581575055,31.22894544,134.58,134.57,10.58690823]
[1750581575639,49.8785943,134.58,134.56,18.01842219]
[1750581575850,49.8785943,134.58,134.54,18.58174792]
[1750581575851,165.54964886,134.57,134.54,10.58690823]
[1750581576066,18.64964886,134.55,134.53,10.58690823]
[1750581576372,18.64964886,134.53,134.49,7.43549706]
[1750581576544,18.64964886,134.53,134.5,10.58690823]
[1750581576545,31.24947661,134.52,134.5,10.58690823]
[1750581577153,18.64964886,134.53,134.51,10.58690823]
[1750581577379,18.64964886,134.53,134.52,10.58690823]
[1750581577750,18.64964886,134.53,134.52,18.02074706]
[1750581580450,146.9,134.54,134.52,18.02074706]
[1750581580650,6.48,134.55,134.53,10.58690823]
[1750581580860,6.48,134.55,134.54,10.58690823]
[1750581581386,25.12964886,134.55,134.54,10.58690823]
[1750581582359,25.12964886,134.55,134.54,18.01964198]
[1750581586351,25.12964886,134.55,134.54,44.01964198]
[1750581587288,6.48,134.55,134.54,44.01964198]
[1750581590282,25.12964886,134.55,134.54,18.01964198]
[1750581595791,6.48,134.55,134.54,18.01964198]
[1750581596297,6.48,134.55,134.54,28.60655021]
[1750581596509,6.48,134.55,134.54,54.60655021]
[1750581597700,18.64964886,134.59,134.54,73.1883846]
[1750581598013,18.64964886,134.59,134.58,10.58690823]
[1750581598685,18.64964886,134.59,134.54,99.76514516]
[1750581598880,18.64964886,134.59,134.58,10.58690823]
[1750581599686,18.64964886,134.59,134.58,18.01743282]
[1750581600385,146.9,134.61,134.6,26.0]
[1750581600583,10.08563606,134.64,134.6,47.17381646]
[1750581600785,10.08563606,134.64,134.63,10.58690823]
[1750581601694,28.73528492,134.64,134.63,18.01467321]
[1750581607192,10.08563606,134.64,134.63,18.01467321]
[1750581607395,153.38,134.7,134.63,73.72291059]
[1750581607615,172.02964886,134.7,134.69,10.58690823]
[1750581609414,172.02964886,134.7,134.69,18.01136438]
[1750581610219,48.98964886,134.74,134.69,36.57250477]
[1750581610419,159.5071,134.75,134.73,10.58690823]
[1750581610642,208.49674886,134.75,134.74,10.58690823]
[1750581611126,178.15674886,134.75,134.74,10.58690823]
[1750581611429,18.64964886,134.74,134.69,7.42445615]
[1750581611591,29.23655709,134.72,134.69,7.42445615]
[1750581611910,18.64964886,134.7,134.69,7.42445615]
[1750581621524,18.64964886,134.68,134.65,10.58690823]
[1750581621725,147.82834917,134.67,134.65,10.58690823]
[1750581622030,146.9,134.67,134.65,10.58690823]
[1750581623036,165.54964886,134.67,134.66,10.58690823]
[1750581623532,146.9,134.67,134.66,18.01301843]
[1750581624812,6.5,134.68,134.66,18.01301843]
[1750581625017,25.14964886,134.68,134.67,10.58690823]
[1750581625630,25.14964886,134.68,134.67,18.012467]
[1750581640946,18.64964886,134.67,134.66,10.58690823]
[1750581643181,18.64964886,134.67,134.66,18.01301843]
[1750581647024,19.57795162,134.67,134.66,18.01301843]
[1750581647932,18.64964886,134.67,134.66,18.01301843]
[1750581650425,159.7658,134.68,134.66,18.01301843]
[1750581650426,153.4,134.68,134.66,18.01301843]
[1750581650647,153.4,134.68,134.67,10.58690823]
[1750581652357,6.5,134.68,134.67,18.012467]
[1750581654151,18.64964886,134.7,134.67,36.57636393]
[1750581654349,18.64964886,134.7,134.69,10.58690823]
[1750581654555,18.64964886,134.7,134.69,18.01136438]
[1750581655338,146.9,134.71,134.69,18.01136438]
[1750581655654,165.54964886,134.71,134.7,10.58690823]
[1750581656662,165.54964886,134.71,134.7,18.0108132]
[1750581657858,6.48,134.73,134.7,36.57057563]
[1750581658054,6.48,134.73,134.72,10.58690823]
[1750581658255,146.9,134.76,134.72,10.58690823]
[1750581658455,146.9,134.76,134.75,10.58690823]
[1750581658658,165.54964886,134.76,134.75,10.58690823]
[1750581659937,165.54964886,134.76,134.75,18.0080585]
[1750581660861,6.48,134.78,134.75,47.14784242]
[1750581661060,25.12964886,134.78,134.77,10.58690823]
[1750581661266,25.12964886,134.78,134.75,36.56093419]
[1750581661267,18.64964886,134.76,134.75,25.97402596]
[1750581661464,18.64964886,134.76,134.75,36.56093419]
[1750581661975,18.64964886,134.76,134.75,18.0080585]
[1750581662176,18.64964886,134.76,134.73,18.55553062]
[1750581662177,48.92964886,134.76,134.73,10.58690823]
[1750581662480,6.0335,134.73,134.7,10.58690823]
[1750581662653,18.64964886,134.71,134.7,10.58690823]
[1750581663874,36.3135,134.73,134.7,18.0108132]
[1750581664081,24.68314886,134.73,134.72,10.58690823]
[1750581664386,31.20793953,134.75,134.72,10.58690823]
[1750581664597,18.64964886,134.74,134.7,25.9836674]
[1750581664748,6.0335,134.76,134.73,10.58690823]
[1750581664944,18.64964886,134.75,134.7,25.9836674]
[1750581665700,18.64964886,134.75,134.7,63.10319227]
[1750581665977,7.40767,134.78,134.74,10.58690823]
[1750581666190,18.64964886,134.77,134.73,26.0]
[1750581667470,18.64964886,134.77,134.76,10.58690823]
[1750581668382,18.64964886,134.77,134.76,18.00750781]
[1750581670857,6.48,134.78,134.76,18.00750781]
[1750581671065,6.48,134.78,134.77,10.58690823]
[1750581672656,6.48,134.78,134.77,18.0069572]
[1750581674468,55.68491731,134.81,134.77,18.0069572]
[1750581674469,6.5975,134.81,134.77,36.55707963]
[1750581674668,25.24714886,134.81,134.8,18.00530585]
[1750581675185,18.64964886,134.82,134.8,36.55129991]
[1750581675483,153.38,134.83,134.81,10.58690823]
[1750581675703,172.02964886,134.83,134.82,10.58690823]
[1750581676165,25.12964886,134.83,134.82,10.58690823]
[1750581676884,18.64964886,134.82,134.8,7.41839762]
[1750581677112,0.92739292,134.81,134.8,7.41839762]
[1750581684013,195.82964886,134.82,134.8,18.00530585]
[1750581684310,195.82964886,134.82,134.81,10.58690823]
[1750581684717,195.82964886,134.82,134.8,18.00530585]
[1750581685793,195.82964886,134.82,134.8,10.58690823]
[1750581686822,18.64964886,134.8,134.79,10.58690823]
[1750581687313,0.92730891,134.81,134.79,10.58690823]
[1750581687488,18.64964886,134.81,134.8,10.58690823]
[1750581687688,18.64964886,134.81,134.8,18.00530585]
[1750581689215,146.9,134.82,134.8,18.00530585]
[1750581689414,6.48,134.83,134.81,10.58690823]
[1750581689607,25.12964886,134.83,134.82,10.58690823]
[1750581690232,6.48,134.83,134.82,10.58690823]
[1750581691506,6.48,134.83,134.82,18.00420536]
[1750581696931,6.48,134.83,134.82,7.41729713]
[1750581697310,6.48,134.83,134.82,10.58690823]
[1750581698128,6.48,134.83,134.78,25.96824454]
[1750581698303,0.92723823,134.82,134.8,10.58690823]
[1750581698623,18.64964886,134.81,134.8,10.58690823]
[1750581699504,18.64964886,134.81,134.8,18.00530585]
[1750581701328,146.9,134.83,134.8,36.55129991]
[1750581701501,165.54964886,134.83,134.82,10.58690823]
[1750581702706,165.54964886,134.83,134.82,18.00420536]
[1750581703927,165.54964886,134.83,134.82,7.41729713]
[1750581704132,165.54964886,134.83,134.82,18.00420536]
[1750581704710,165.54964886,134.83,134.81,10.58690823]
[1750581705326,165.54964886,134.83,134.82,10.58690823]
[1750581706332,165.54964886,134.83,134.82,18.00420536]
[1750581708840,165.54964886,134.83,134.82,7.41729713]
[1750581719445,195.80964886,134.83,134.82,7.41729713]
[1750581720940,195.80964886,134.83,134.82,18.00420536]
[1750581721130,165.54964886,134.83,134.82,18.00420536]
[1750581723541,165.54964886,134.83,134.82,7.41729713]
[1750581723756,195.80964886,134.83,134.82,7.41729713]
[1750581725840,165.54964886,134.83,134.82,7.41729713]
[1750581727125,165.54964886,134.83,134.82,10.58690823]
[1750581730028,165.54964886,134.83,134.82,18.00420536]
[1750581731254,165.54964886,134.83,134.82,7.41729713]
[1750581731941,195.80964886,134.83,134.82,7.41729713]
[1750581732146,201.35431794,134.83,134.82,7.41729713]
[1750581733271,195.80964886,134.83,134.82,7.41729713]
[1750581734143,165.54964886,134.83,134.82,7.41729713]
[1750581734346,171.09553974,134.83,134.82,7.41729713]
[1750581735362,18.64964886,134.82,134.81,7.41784734]
[1750581735654,18.64964886,134.82,134.81,18.00475557]
[1750581736860,18.64964886,134.86,134.84,26.0]
[1750581737060,24.71214886,134.84,134.81,7.41784734]
[1750581737261,18.64964886,134.82,134.81,7.41784734]
[1750581739560,24.71214886,134.84,134.81,36.54937392]
[1750581739735,18.64964886,134.84,134.82,10.58690823]
[1750581741048,18.64964886,134.84,134.83,7.41674701]
[1750581742346,18.64964886,134.84,134.83,10.58690823]
[1750581743769,18.64964886,134.85,134.83,10.58690823]
[1750581743962,18.64964886,134.85,134.84,10.58690823]
[1750581744349,18.64964886,134.85,134.84,18.0031052]
[1750581746573,146.9,134.86,134.84,18.0031052]
[1750581746864,165.54964886,134.86,134.85,10.58690823]
[1750581747579,165.54964886,134.86,134.85,18.00255524]
[1750581748546,153.36,134.89,134.85,36.54167277]
[1750581748750,18.64964886,134.88,134.87,10.58690823]
[1750581749272,153.36,134.89,134.87,10.58690823]
[1750581749589,153.36,134.89,134.88,10.58690823]
[1750581749880,18.64964886,134.9,134.88,36.53589991]
[1750581750049,18.64964886,134.9,134.89,10.58690823]
[1750581750562,153.36,134.92,134.89,10.58690823]
[1750581750760,18.64964886,134.91,134.88,25.94899168]
[1750581750963,153.36,134.92,134.9,10.58690823]
[1750581751278,172.00964886,134.92,134.91,10.58690823]
[1750581751772,172.00964886,134.92,134.88,51.94899168]
[1750581752146,172.00964886,134.92,134.91,10.58690823]
[1750581753181,172.00964886,134.92,134.91,17.9992572]
[1750581754259,153.36,134.92,134.91,17.9992572]
[1750581754464,6.46,134.92,134.91,17.9992572]
[1750581754660,18.64964886,134.94,134.91,36.53012963]
[1750581754867,1.6664,134.95,134.91,36.53012963]
[1750581754868,18.64964886,134.96,134.93,36.58690823]
[1750581755067,18.64964886,134.96,134.95,17.99706013]
[1750581756074,146.9,134.97,134.95,17.99706013]
[1750581756361,165.54964886,134.97,134.96,10.58690823]
[1750581756972,6.46,134.98,134.96,10.58690823]
[1750581757176,6.46,134.98,134.97,17.99596209]
[1750581757480,25.10964886,134.98,134.97,17.99596209]
[1750581757697,25.10964886,134.98,134.97,7.40905386]
[1750581758862,18.64964886,134.97,134.94,17.99760928]
[1750581759067,18.64964886,134.95,134.94,17.99760928]
[1750581760484,18.64964886,134.96,134.94,36.52436191]
[1750581760679,18.64964886,134.97,134.95,10.58690823]
[1750581760895,6.4139,134.99,134.96,10.58690823]
[1750581761097,18.64964886,134.98,134.97,10.58690823]
[1750581761297,19.57579309,134.98,134.97,17.99596209]
[1750581761484,18.64964886,134.98,134.97,17.99596209]
[1750581762387,18.64964886,134.98,134.97,7.40905386]
[1750581763195,48.86964886,134.98,134.96,7.40960284]
[1750581763384,0.9262983,134.97,134.96,7.40960284]
[1750581764076,49.79591204,134.98,134.96,17.99651107]
[1750581765090,18.64964886,134.98,134.96,17.99651107]
[1750581768385,18.64964886,134.98,134.97,10.58690823]
[1750581769377,18.64964886,134.98,134.97,17.99596209]
[1750581771270,0.92611204,134.99,134.97,17.99596209]
[1750581771472,6.46,135.0,134.98,10.58690823]
[1750581771694,6.46,135.0,134.99,10.58690823]
[1750581773099,6.4139,135.02,134.99,36.58690823]
[1750581773314,146.9,135.04,135.02,7.40631017]
[1750581773600,165.54964886,135.04,135.03,10.58690823]
[1750581774277,37.609226,135.05,135.03,10.58690823]
[1750581774485,37.609226,135.05,135.04,10.58690823]
[1750581775488,37.609226,135.05,135.04,17.9921215]
[1750581781593,37.609226,135.05,135.04,33.40521327]
[1750581781792,37.609226,135.05,135.04,43.9921215]
[1750581783910,37.609226,135.05,135.04,17.9921215]
[1750581783911,56.25887486,135.05,135.04,17.9921215]
[1750581784487,56.25887486,135.05,135.04,7.40521327]
[1750581784717,203.15887486,135.05,135.04,7.40521327]
[1750581785010,203.15887486,135.05,135.02,18.51577544]
[1750581785011,165.54964886,135.04,134.99,25.9264927]
[1750581785315,188.61292706,135.03,134.99,36.51340093]
[1750581785497,18.64964886,135.01,134.99,36.51340093]
[1750581786593,0.92598658,135.02,134.99,7.40795614]
[1750581786594,19.5756656,135.0,134.99,7.40795614]
[1750581787196,18.64964886,135.0,134.99,7.40795614]
[1750581787400,18.64964886,135.0,134.99,17.99486437]
[1750581787906,18.64964886,135.0,134.99,7.40795614]
[1750581788103,18.64964886,135.0,134.99,17.99486437]
[1750581789908,18.64964886,135.04,134.99,62.51475473]
[1750581790108,19.57539689,135.04,135.02,10.58690823]
[1750581790295,18.64964886,135.04,135.02,10.58690823]
[1750581790909,44.80077248,135.05,135.02,26.0]
[1750581791091,18.64964886,135.04,135.01,10.58690823]
[1750581791292,18.64964886,135.02,135.01,10.58690823]
[1750581791494,18.64964886,135.02,135.0,10.58690823]
[1750581791818,18.64964886,135.02,134.99,62.51475473]
[1750581792119,19.57555537,135.02,134.99,62.51475473]
[1750581792420,19.57555537,135.02,135.0,10.58690823]
[1750581793203,19.57555537,135.02,135.01,7.40685875]
[1750581793417,18.64964886,135.02,135.01,7.40685875]
[1750581793914,31.14590096,135.03,135.01,17.99376698]
[1750581794219,18.64964886,135.03,135.02,10.58690823]
[1750581794810,18.64964886,135.04,135.02,10.58690823]
[1750581795020,37.609226,135.05,135.03,10.58690823]
[1750581795209,37.609226,135.05,135.04,17.9921215]
[1750581798719,37.609226,135.05,135.04,17.9921215]
[1750581808426,37.609226,135.05,135.04,7.40521327]
[1750581808631,37.609226,135.05,135.04,17.9921215]
[1750581813114,37.609226,135.05,135.04,24.00086079]
[1750581814040,153.5469,135.1,135.09,10.58690823]
[1750581814243,6.6469,135.1,135.09,10.58690823]
[1750581815033,0.9660254,135.12,135.09,10.58690823]
[1750581815236,19.61567426,135.12,135.11,10.58690823]
[1750581815829,19.61567426,135.12,135.11,17.98828488]
[1750581816139,0.9660254,135.12,135.11,17.98828488]
[1750581820540,19.61567426,135.12,135.11,7.40137665]
[1750581820750,19.61567426,135.12,135.11,17.98828488]
[1750581822350,0.9660254,135.12,135.11,17.98828488]
[1750581822557,0.9660254,135.12,135.11,7.40137665]
[1750581822725,0.9660254,135.12,135.11,43.98828488]
[1750581823049,0.9660254,135.12,135.11,17.98828488]
[1750581823233,19.61567426,135.12,135.11,7.40137665]
[1750581825035,19.61567426,135.12,135.11,17.98828488]
[1750581825424,19.61567426,135.12,135.11,7.40137665]
[1750581828957,0.9660254,135.12,135.11,17.98828488]
[1750581829345,0.9660254,135.12,135.11,43.98828488]
[1750581834556,19.61567426,135.12,135.11,7.40137665]
[1750581836966,18.64964886,135.11,135.1,7.4019245]
[1750581837140,18.64964886,135.11,135.1,17.98883273]
[1750581838461,18.64964886,135.11,135.1,7.4019245]
[1750581838663,18.64964886,135.11,135.1,17.98883273]
[1750581840360,19.61567426,135.12,135.1,7.4019245]
[1750581840557,18.64964886,135.11,135.1,17.98883273]
[1750581842071,18.64964886,135.11,135.1,7.4019245]
[1750581842381,21.14560382,135.11,135.1,7.4019245]
[1750581842862,51.54560382,135.11,135.09,25.90821364]
[1750581844768,18.64964886,135.09,135.05,7.40466493]
[1750581844944,18.64964886,135.07,135.05,7.40466493]
[1750581845150,18.64964886,135.06,135.05,7.40466493]
[1750581845746,18.64964886,135.06,135.05,17.99157316]
[1750581846675,18.64964886,135.05,135.04,7.40521327]
[1750581846875,19.57536871,135.06,135.04,7.40521327]
[1750581847252,19.57536871,135.06,135.04,17.9921215]
[1750581847456,49.97536871,135.06,135.04,7.40521327]
[1750581849878,49.97536871,135.06,135.04,17.9921215]
[1750581850494,49.04964886,135.06,135.04,17.9921215]
[1750581850666,49.97524574,135.06,135.04,17.9921215]
[1750581851484,49.97524574,135.06,135.04,7.40521327]
[1750581854182,49.97524574,135.06,135.03,18.51398795]